bitfinex/quotes_ETHUSD_20250526
["timestamp","ask_amount","ask_price","bid_price","bid_amount"]
[1748253957079,5.72783135,2559.5,2559.4,12.17133826]
[1748253957287,5.72783135,2559.5,2559.4,14.24347209]
[1748253957507,4.165,2559.5,2559.4,14.79347209]
[1748253958602,5.72780523,2559.5,2559.4,14.79347209]
[1748253958975,4.165,2559.5,2559.4,14.79347209]
[1748253960501,11.93873362,2559.7,2559.5,8.55]
[1748253960703,9.99770352,2559.7,2559.6,4.17133826]
[1748253960867,8.435,2559.7,2559.6,12.72133826]
[1748253961067,4.165,2560.0,2559.9,0.55]
[1748253961304,4.165,2560.0,2559.9,12.72133826]
[1748253961515,4.165,2560.0,2559.9,13.99347209]
[1748253961685,5.7275,2560.0,2559.9,13.99347209]
[1748253962922,5.7275,2560.0,2559.9,5.99347209]
[1748253966183,4.164,2560.0,2559.9,13.99347209]
[1748253966814,5.7265,2560.0,2559.9,13.99347209]
[1748253973524,1.5622613,2560.4,2560.3,0.55]
[1748253973725,4.158,2560.4,2560.3,11.90273826]
[1748253974021,4.158,2560.8,2560.6,0.776]
[1748253974229,4.158,2560.8,2560.7,0.55]
[1748253974423,4.158,2560.8,2560.7,10.21207865]
[1748253974727,5.72001187,2560.8,2560.7,10.21207865]
[1748253974920,5.72001187,2560.8,2560.7,5.56481691]
[1748253976466,5.72001187,2560.8,2560.7,3.90273826]
[1748253977973,5.72001187,2560.8,2560.7,8.0]
[1748253978280,9.62301187,2560.8,2560.7,8.0]
[1748253978439,9.62301187,2560.8,2560.7,11.35273826]
[1748253979078,5.71901187,2560.8,2560.7,11.90273826]
[1748253979258,5.71901187,2560.8,2560.7,13.09301209]
[1748253981882,1.56201187,2560.8,2560.7,13.09301209]
[1748253982179,5.71901187,2560.8,2560.7,13.09301209]
[1748253986401,5.71901187,2560.8,2560.7,11.90273826]
[1748253987813,12.59,2561.0,2560.9,0.55]
[1748253988009,12.59,2561.0,2560.9,15.29452185]
[1748253988308,14.15188988,2561.0,2560.9,15.14807642]
[1748253988689,12.59,2561.0,2560.9,15.14807642]
[1748253989507,12.59,2561.0,2560.9,19.05007642]
[1748253990092,12.59,2561.0,2560.9,19.88317642]
[1748253991202,14.15188988,2561.0,2560.9,19.88317642]
[1748253991966,5.71888988,2561.0,2560.9,19.88317642]
[1748253992803,5.71888988,2561.0,2560.9,15.69733816]
[1748253993107,5.71888988,2561.0,2560.9,11.90273826]
[1748253994985,4.157,2561.0,2560.9,11.90273826]
[1748253995494,1.56186014,2561.1,2561.0,8.55]
[1748253995803,5.71786014,2561.1,2561.0,0.55]
[1748254000415,5.71786014,2561.1,2561.0,8.55]
[1748254002919,5.71786014,2561.1,2561.0,9.15283414]
[1748254003215,4.156,2561.1,2561.0,12.5055724]
[1748254003918,4.156,2561.1,2561.0,9.15283414]
[1748254004494,4.156,2561.1,2561.0,13.05383414]
[1748254005910,4.156,2561.1,2561.0,9.15283414]
[1748254006111,4.156,2561.1,2561.0,13.3063724]
[1748254006453,4.151,2561.3,2561.1,0.55]
[1748254006639,4.151,2561.3,2561.2,13.62383589]
[1748254009030,4.151,2561.3,2561.2,18.32555569]
[1748254009230,4.151,2561.3,2561.2,14.42113589]
[1748254011839,1.56159395,2561.5,2561.3,0.55]
[1748254012172,4.151,2561.4,2561.3,0.55]
[1748254012368,4.151,2561.4,2561.3,6.01033266]
[1748254012673,4.151,2561.4,2561.3,14.01033266]
[1748254013370,4.151,2561.4,2561.3,17.36307092]
[1748254015753,1.56140213,2561.8,2561.3,17.36307092]
[1748254016091,0.1,2561.9,2561.8,8.55]
[1748254016243,4.251,2561.9,2561.8,8.55]
[1748254016456,5.812355,2561.9,2561.8,8.55]
[1748254018702,4.251,2561.9,2561.8,10.21002383]
[1748254019757,0.1,2561.9,2561.8,22.15626743]
[1748254019983,0.1,2561.9,2561.8,18.25276209]
[1748254020210,0.7986,2562.8,2562.1,0.55]
[1748254020387,4.151,2562.4,2562.3,0.55]
[1748254020576,5.71203652,2562.4,2562.3,13.48301209]
[1748254020905,5.71203652,2562.4,2562.3,11.90273826]
[1748254023727,6.25940828,2562.8,2562.3,11.90273826]
[1748254023728,4.15,2562.6,2562.5,0.55]
[1748254023869,4.15,2562.6,2562.5,11.94175858]
[1748254024208,4.15,2562.6,2562.5,15.80273826]
[1748254024371,4.15,2562.6,2562.5,17.46202209]
[1748254024566,4.15,2562.8,2562.7,0.55]
[1748254024768,4.15,2562.8,2562.7,15.80273826]
[1748254026492,4.25,2562.9,2562.8,8.55]
[1748254026694,5.81073198,2562.9,2562.8,0.55]
[1748254026893,4.25,2562.9,2562.8,0.55]
[1748254027093,5.81073198,2562.9,2562.8,8.55]
[1748254027295,0.1,2562.9,2562.8,14.27311209]
[1748254027495,0.1,2562.9,2562.8,18.17509429]
[1748254028725,6.0900301,2563.3,2563.2,1.3725]
[1748254029037,6.0900301,2563.3,2563.2,16.62423826]
[1748254029703,4.149,2563.3,2563.2,16.62423826]
[1748254029903,4.149,2563.3,2563.2,19.01210296]
[1748254032637,8.426,2563.5,2563.3,8.55]
[1748254032838,12.574,2563.5,2563.4,11.90273826]
[1748254033044,4.148,2563.8,2563.5,8.55]
[1748254033203,4.148,2563.8,2563.7,8.55]
[1748254033710,4.148,2563.8,2563.7,12.45061239]
[1748254033912,4.144,2564.3,2564.0,9.3649]
[1748254034138,1.65954921,2564.9,2564.4,0.55]
[1748254034343,1.55966673,2564.7,2564.6,8.55]
[1748254034507,1.55966673,2564.7,2564.6,11.90054565]
[1748254037015,1.55966673,2564.7,2564.4,12.447]
[1748254037016,1.55979822,2564.5,2564.4,12.447]
[1748254037445,0.8115,2564.7,2564.4,12.447]
[1748254037644,6.61402649,2564.9,2564.5,8.55]
[1748254037830,1.55967582,2564.7,2564.5,8.55]
[1748254038212,1.55967582,2564.7,2564.6,11.35273826]
[1748254038756,1.55960286,2564.8,2564.7,8.0]
[1748254038953,5.8025408,2564.9,2564.8,0.55]
[1748254039108,5.8025408,2564.9,2564.8,11.90273826]
[1748254042345,1.6595408,2564.9,2564.8,15.79973826]
[1748254042522,1.64635144,2564.9,2564.8,15.79973826]
[1748254045961,1.64635144,2564.9,2564.8,11.90273826]
[1748254046165,1.55957579,2564.8,2564.1,0.762]
[1748254046321,1.5596366,2564.7,2564.1,3.896]
[1748254046521,1.5596366,2564.7,2564.5,3.35273826]
[1748254046845,1.55969741,2564.6,2564.5,3.35273826]
[1748254047029,1.55969741,2564.6,2564.5,11.35273826]
[1748254047231,1.55981906,2564.4,2563.5,0.762]
[1748254047445,1.56013384,2563.9,2563.6,3.896]
[1748254047649,1.56013384,2563.9,2563.7,8.4658]
[1748254047959,1.56013384,2563.9,2563.8,8.0]
[1748254048145,1.56013384,2563.9,2563.8,11.896]
[1748254048345,1.56016677,2563.9,2563.7,0.4658]
[1748254048662,1.56014953,2563.9,2563.8,3.35273826]
[1748254049364,2.38995553,2564.2,2563.3,0.8019]
[1748254049659,1.56012324,2563.9,2563.8,3.35273826]
[1748254050339,1.56038485,2563.5,2563.4,12.446]
[1748254050534,1.56038485,2563.5,2563.4,15.79873826]
[1748254050847,1.56038485,2563.5,2563.4,16.82861209]
[1748254051164,5.70136397,2563.6,2563.5,0.55]
[1748254051876,1.5603775,2563.5,2563.1,8.0]
[1748254052176,1.5603775,2563.5,2563.4,11.90273826]
[1748254053527,5.70132974,2563.6,2563.5,8.55]
[1748254056967,4.141,2563.6,2563.5,8.55]
[1748254057258,5.70130581,2563.6,2563.5,8.55]
[1748254057565,0.7867,2564.0,2563.5,9.74027383]
[1748254057730,4.142,2563.6,2563.5,1.74027383]
[1748254058058,4.142,2563.6,2563.5,11.90273826]
[1748254059933,1.56020632,2563.8,2563.6,8.55]
[1748254060132,4.142,2563.7,2563.6,0.55]
[1748254060664,4.142,2563.8,2563.6,12.70663826]
[1748254060862,4.142,2563.8,2563.7,11.90273826]
[1748254061061,4.142,2563.8,2563.7,14.28844076]
[1748254061266,4.142,2563.8,2563.7,10.9357025]
[1748254062039,1.5600662,2564.0,2563.8,8.55]
[1748254062252,4.142,2563.9,2563.8,8.55]
[1748254062568,4.142,2563.9,2563.8,15.25547652]
[1748254062735,4.142,2563.9,2563.8,17.87973855]
[1748254064472,4.142,2563.9,2563.8,14.52700029]
[1748254065375,4.142,2563.9,2563.8,17.87973855]
[1748254065734,4.142,2563.9,2563.8,21.77673855]
[1748254065969,9.97784645,2564.4,2563.9,0.8068]
[1748254066152,4.139,2564.3,2564.2,3.35273826]
[1748254066356,4.139,2564.3,2564.2,11.35273826]
[1748254067037,5.69887988,2564.3,2564.2,11.35273826]
[1748254067236,9.97785448,2564.4,2564.3,8.55]
[1748254067442,14.11685448,2564.4,2564.3,0.55]
[1748254067887,12.557,2564.4,2564.3,0.55]
[1748254068870,12.557,2564.4,2564.3,2.13027115]
[1748254069254,14.11681906,2564.4,2564.3,2.13027115]
[1748254069471,14.11681906,2564.4,2564.3,0.55]
[1748254073281,5.69881906,2564.4,2564.3,0.55]
[1748254074175,4.139,2564.4,2564.3,0.55]
[1748254074743,4.138,2564.5,2564.3,0.55]
[1748254074977,4.138,2564.5,2564.4,11.90273826]
[1748254075182,5.69776242,2564.5,2564.4,13.48261209]
[1748254075844,4.138,2564.5,2564.4,13.48261209]
[1748254076048,1.55961876,2564.8,2564.5,8.55]
[1748254076249,1.55961876,2564.8,2564.7,11.90273826]
[1748254077543,0.08681064,2564.9,2564.8,9.3538]
[1748254077741,0.08681064,2564.9,2564.8,1.3538]
[1748254077966,1.64632563,2564.9,2564.8,8.55]
[1748254080405,5.78432563,2564.9,2564.8,8.55]
[1748254081511,4.22481064,2564.9,2564.8,8.55]
[1748254081711,1.64632563,2564.9,2564.8,8.55]
[1748254082013,0.08681064,2564.9,2564.8,8.55]
[1748254082212,5.6973598,2565.2,2565.0,0.55]
[1748254082393,1.55939339,2565.1,2565.0,15.25547652]
[1748254082776,1.55923811,2565.4,2565.2,0.55]
[1748254083104,1.55938718,2565.2,2565.0,3.35273826]
[1748254083305,1.55938718,2565.2,2565.1,11.35273826]
[1748254084506,5.45538718,2565.2,2565.1,11.35273826]
[1748254085008,9.59138718,2565.2,2565.1,11.35273826]
[1748254085586,5.69638718,2565.2,2565.1,11.35273826]
[1748254085780,9.59138718,2565.2,2565.1,11.35273826]
[1748254086010,5.69638718,2565.2,2565.1,11.35273826]
[1748254086186,5.69638718,2565.2,2565.1,8.0]
[1748254087010,5.69638718,2565.2,2565.1,8.55]
[1748254087387,1.55938718,2565.2,2565.1,8.55]
[1748254087797,5.69629188,2565.3,2565.2,8.55]
[1748254088000,5.69629188,2565.3,2565.2,3.90273826]
[1748254088186,4.137,2565.4,2565.2,3.90273826]
[1748254088382,1.55911372,2565.6,2565.2,5.50386591]
[1748254088575,1.55911372,2565.6,2565.5,8.55]
[1748254089714,1.55911372,2565.6,2565.5,8.0]
[1748254089880,1.5593326,2565.2,2565.1,0.55]
[1748254090080,1.5593326,2565.2,2565.1,11.90273826]
[1748254093375,5.69630582,2565.3,2565.2,8.0]
[1748254093614,4.137,2565.3,2565.2,8.55]
[1748254094303,1.55922844,2565.4,2565.2,8.55]
[1748254094617,1.55916408,2565.5,2565.4,8.55]
[1748254101823,2.38376408,2565.5,2565.4,8.55]
[1748254106325,1.5593326,2565.2,2565.1,10.07554765]
[1748254106527,1.5593326,2565.2,2565.1,8.55]
[1748254106733,1.5593326,2565.2,2565.1,8.0]
[1748254106937,1.55945419,2565.0,2564.9,0.623929]
[1748254107106,1.55945419,2565.0,2564.9,11.97666726]
[1748254107312,1.55945419,2565.0,2564.9,12.52666726]
[1748254107705,1.55945419,2565.0,2564.9,11.97666726]
[1748254108731,1.55945419,2565.0,2564.9,11.35273826]
[1748254109532,1.55941297,2565.1,2565.0,8.0]
[1748254109702,5.69345419,2565.0,2564.9,4.48801209]
[1748254109905,5.69345419,2565.0,2564.9,3.35273826]
[1748254110415,5.69345419,2565.0,2564.8,0.825]
[1748254110416,1.55951499,2564.9,2564.8,1.375]
[1748254110732,6.27471499,2564.9,2564.8,3.35273826]
[1748254111663,1.55959348,2564.8,2564.2,1.402229]
[1748254111947,1.55987988,2564.3,2564.2,0.623929]
[1748254112234,5.69387988,2564.3,2564.2,0.623929]
[1748254112606,6.52317988,2564.3,2564.2,0.623929]
[1748254113021,6.52317988,2564.3,2564.2,3.97666726]
[1748254113223,1.56030581,2563.6,2563.5,1.409029]
[1748254113424,1.56024659,2563.7,2563.5,4.76176726]
[1748254113749,1.56024659,2563.7,2563.6,3.35273826]
[1748254114117,1.56024659,2563.7,2563.6,3.90273826]
[1748254116344,2.314192,2563.8,2563.7,8.0]
[1748254118446,5.695192,2563.8,2563.7,9.68527383]
[1748254121237,5.695192,2563.8,2563.7,8.55]
[1748254124274,4.135,2563.8,2563.7,8.55]
[1748254124581,5.6951841,2563.8,2563.7,8.55]
[1748254129686,5.6941841,2563.8,2563.7,8.55]
[1748254131357,1.56009223,2564.0,2563.8,0.55]
[1748254131704,4.134,2563.9,2563.8,0.55]
[1748254131985,4.134,2563.9,2563.7,0.55]
[1748254132281,4.134,2563.9,2563.7,9.87472531]
[1748254132772,4.134,2563.9,2563.8,11.90273826]
[1748254132974,5.69412324,2563.9,2563.8,11.90273826]
[1748254137577,9.59112324,2563.9,2563.8,11.90273826]
[1748254138770,5.69412324,2563.9,2563.8,11.90273826]
[1748254138998,1.56012324,2563.9,2563.8,11.90273826]
[1748254139300,9.59112324,2563.9,2563.8,11.90273826]
[1748254140711,4.134,2564.4,2564.1,5.20472389]
[1748254140913,4.134,2564.4,2564.3,0.55]
[1748254141197,4.134,2564.4,2564.3,8.55]
[1748254144502,4.134,2564.4,2564.3,11.90273826]
[1748254144706,4.134,2564.4,2564.3,13.95585881]
[1748254145205,8.418,2564.8,2564.4,8.55]
[1748254145519,12.552,2564.8,2564.7,8.55]
[1748254145973,8.418,2564.8,2564.7,12.44909151]
[1748254146302,8.418,2564.8,2564.7,11.78726442]
[1748254149020,9.97757579,2564.8,2564.7,11.78726442]
[1748254150988,8.418,2564.8,2564.7,11.78726442]
[1748254151330,4.133,2565.0,2564.8,0.55]
[1748254151488,4.133,2565.0,2564.9,11.90273826]
[1748254151826,1.55936869,2565.2,2565.0,0.55]
[1748254151988,4.133,2565.1,2565.0,11.90273826]
[1748254152190,4.133,2565.1,2565.0,15.25547652]
[1748254152584,5.69239339,2565.1,2565.0,15.25547652]
[1748254152826,5.69239339,2565.1,2565.0,11.90273826]
[1748254153517,5.69239339,2565.1,2565.0,11.35273826]
[1748254154887,9.58839339,2565.1,2565.0,11.35273826]
[1748254155916,10.36779339,2565.1,2565.0,11.35273826]
[1748254159123,9.58839339,2565.1,2565.0,11.35273826]
[1748254161227,1.55939339,2565.1,2565.0,11.35273826]
[1748254161425,9.58539339,2565.1,2565.0,11.35273826]
[1748254167860,9.58539339,2565.1,2564.3,0.623929]
[1748254167861,1.55981906,2564.4,2564.3,0.623929]
[1748254168004,1.55981906,2564.4,2564.3,3.97666726]
[1748254168205,5.69081906,2564.4,2564.3,12.52666726]
[1748254168605,5.69081906,2564.4,2564.3,11.90273826]
[1748254169843,4.8718,2565.5,2564.4,9.3684]
[1748254170050,1.55961302,2564.8,2564.6,8.55]
[1748254170342,1.55955019,2564.9,2564.6,0.55]
[1748254170651,1.55962147,2564.8,2564.6,0.55]
[1748254170805,1.5596366,2564.7,2564.6,0.55]
[1748254171005,1.5596366,2564.7,2564.6,1.9387329]
[1748254171221,1.5596366,2564.7,2564.6,3.90273826]
[1748254171415,1.5596366,2564.7,2564.6,11.90273826]
[1748254171633,1.5596366,2564.7,2564.6,11.35273826]
[1748254173765,1.5596366,2564.7,2564.6,8.0]
[1748254173766,5.4546366,2564.7,2564.6,8.0]
[1748254173923,6.2546366,2564.7,2564.6,8.0]
[1748254174260,1.55975823,2564.5,2564.4,3.97666726]
[1748254174459,5.45475823,2564.5,2564.4,3.97666726]
[1748254174651,5.45475823,2564.5,2564.4,11.35273826]
[1748254181997,9.58675823,2564.5,2564.4,11.35273826]
[1748254193458,10.37765823,2564.5,2564.4,8.0]
[1748254193779,14.41765823,2564.5,2564.4,8.0]
[1748254194671,14.77956334,2564.5,2564.4,8.0]
[1748254197311,6.75256334,2564.5,2564.4,8.0]
[1748254197615,14.77856334,2564.5,2564.4,11.35273826]
[1748254200603,13.98866334,2564.5,2564.4,11.35273826]
[1748254201302,5.96166334,2564.5,2564.4,11.35273826]
[1748254201509,13.62675823,2564.5,2564.4,11.35273826]
[1748254202884,5.68975823,2564.5,2564.4,11.35273826]
[1748254203065,1.55975823,2564.5,2564.4,13.29931209]
[1748254203281,9.58675823,2564.5,2564.4,13.29931209]
[1748254203582,9.58675823,2564.5,2564.4,12.16403826]
[1748254204437,4.8712,2565.0,2564.4,12.16403826]
[1748254204624,5.68952801,2564.9,2564.4,8.0]
[1748254204796,1.55960453,2564.8,2564.6,0.8187]
[1748254205118,1.5596366,2564.7,2564.6,1.3687]
[1748254205281,1.5596366,2564.7,2564.6,9.89527]
[1748254205826,1.5596366,2564.7,2564.6,13.24800826]
[1748254206947,1.559608,2564.8,2564.6,13.24800826]
[1748254207230,4.13,2564.9,2564.6,13.24800826]
[1748254207231,5.68951499,2564.9,2564.8,9.3647]
[1748254207529,5.68951499,2564.9,2564.8,1.3647]
[1748254207734,5.68951499,2564.9,2564.8,2.68910083]
[1748254208632,1.55946048,2565.0,2564.8,2.68910083]
[1748254208633,1.55947783,2565.0,2564.8,6.04183909]
[1748254208840,4.13,2564.9,2564.8,9.12313909]
[1748254209135,1.55942517,2565.1,2564.8,5.77040083]
[1748254209304,1.55945419,2565.0,2564.9,1.94174008]
[1748254210237,1.55945419,2565.0,2564.9,13.29447834]
[1748254211972,1.55945419,2565.0,2564.9,16.6472166]
[1748254212496,1.55939573,2565.1,2565.0,8.55]
[1748254212728,1.55939573,2565.1,2565.0,0.55]
[1748254212934,1.55939573,2565.1,2565.0,2.34716174]
[1748254215415,14.10335196,2565.2,2565.1,9.3369]
[1748254215640,14.10335196,2565.2,2565.1,12.68963826]
[1748254225069,1.55945419,2565.0,2564.7,0.765]
[1748254225226,1.5596366,2564.7,2564.6,0.623929]
[1748254225406,5.4546366,2564.7,2564.6,3.97666726]
[1748254226430,5.4546366,2564.7,2564.6,3.35273826]
[1748254226840,5.4546366,2564.7,2564.6,11.35273826]
[1748254229229,9.5816366,2564.7,2564.6,11.35273826]
[1748254232844,10.4033366,2564.7,2564.6,8.0]
[1748254233466,1.55969741,2564.6,2564.5,3.35273826]
[1748254233660,1.55969741,2564.6,2564.5,11.35273826]
[1748254234274,2.36199741,2564.6,2564.5,3.35273826]
[1748254234479,6.25799741,2564.6,2564.5,3.35273826]
[1748254238587,10.29799741,2564.6,2564.5,3.35273826]
[1748254242498,6.40199741,2564.6,2564.5,3.35273826]
[1748254242685,10.29799741,2564.6,2564.5,3.35273826]
[1748254243702,10.29799741,2564.6,2564.5,11.35273826]
[1748254245701,5.59969741,2564.6,2564.5,11.35273826]
[1748254246006,9.72769741,2564.6,2564.5,13.27911209]
[1748254246668,9.72769741,2564.6,2564.5,12.14383826]
[1748254248778,9.72769741,2564.6,2564.5,11.35273826]
[1748254249302,13.62369741,2564.6,2564.5,11.35273826]
[1748254249616,14.40109741,2564.6,2564.5,11.35273826]
[1748254250425,10.36109741,2564.6,2564.5,11.35273826]
[1748254252892,9.58369741,2564.6,2564.5,11.35273826]
[1748254256125,9.94609095,2564.6,2564.5,11.35273826]
[1748254256421,13.98609095,2564.6,2564.5,11.35273826]
[1748254257750,10.09009095,2564.6,2564.5,11.35273826]
[1748254257926,13.98309095,2564.6,2564.5,11.35273826]
[1748254258124,5.96209095,2564.6,2564.5,11.35273826]
[1748254258342,10.08709095,2564.6,2564.5,12.48801209]
[1748254258648,9.72469741,2564.6,2564.5,12.48801209]
[1748254259713,9.72469741,2564.6,2564.5,11.35273826]
[1748254260046,5.59969741,2564.6,2564.5,11.35273826]
[1748254260250,4.04,2564.6,2564.5,11.35273826]
[1748254260451,4.125,2564.8,2564.7,0.55]
[1748254260627,5.68457579,2564.8,2564.7,16.03027652]
[1748254260828,5.68457579,2564.8,2564.7,14.28056591]
[1748254261531,1.5591906,2565.5,2564.8,8.0]
[1748254261727,5.68441047,2565.1,2565.0,8.8325]
[1748254261933,5.68441047,2565.1,2565.0,12.18523826]
[1748254264252,5.68441047,2565.1,2565.0,12.73523826]
[1748254264429,5.68441047,2565.1,2565.0,14.34403591]
[1748254266254,4.125,2565.1,2565.0,14.34403591]
[1748254266559,14.09936014,2565.2,2565.0,14.34403591]
[1748254266758,14.09935482,2565.2,2565.0,14.34403591]
[1748254268428,1.55939339,2565.1,2565.0,14.34403591]
[1748254268668,14.09936063,2565.2,2565.0,14.34403591]
[1748254268825,14.09936063,2565.2,2565.1,2.15927742]
[1748254271548,14.09936063,2565.2,2565.1,10.70927742]
[1748254272481,12.54,2565.2,2565.1,10.70927742]
[1748254276073,4.125,2565.2,2565.1,10.70927742]
[1748254277101,5.6843326,2565.2,2565.1,10.70927742]
[1748254280398,1.5593326,2565.2,2565.1,10.70927742]
[1748254280800,4.124,2565.3,2565.2,8.55]
[1748254280959,4.124,2565.3,2565.2,14.63704617]
[1748254281391,4.124,2565.3,2565.2,11.90273826]
[1748254281566,5.68327182,2565.3,2565.2,11.90273826]
[1748254284901,4.124,2565.3,2565.2,11.90273826]
[1748254285077,5.68327182,2565.3,2565.2,11.90273826]
[1748254289404,5.68327182,2565.3,2565.2,8.0]
[1748254289603,1.55939339,2565.1,2565.0,0.623929]
[1748254289796,1.55939339,2565.1,2565.0,11.97666726]
[1748254289797,5.45439339,2565.1,2565.0,11.97666726]
[1748254290369,5.45439339,2565.1,2565.0,11.35273826]
[1748254290700,6.28029339,2565.1,2565.0,11.35273826]
[1748254292528,6.28029339,2565.1,2565.0,8.0]
[1748254292702,6.28029339,2565.1,2565.0,11.35273826]
[1748254294190,9.57639339,2565.1,2565.0,6.70547652]
[1748254294805,9.57639339,2565.1,2565.0,3.35273826]
[1748254296314,9.57639339,2565.1,2565.0,11.35273826]
[1748254296940,2.3394366,2564.7,2564.6,0.623929]
[1748254297117,6.2344366,2564.7,2564.6,0.623929]
[1748254297521,2.38821906,2564.4,2564.3,11.35273826]
[1748254297714,10.40521906,2564.4,2564.3,11.35273826]
[1748254298596,10.40521906,2564.4,2564.3,3.35273826]
[1748254301935,1.56030581,2563.6,2563.5,8.768]
[1748254302120,1.56030581,2563.6,2563.5,13.44953116]
[1748254302323,1.56030581,2563.6,2563.5,13.99953116]
[1748254302529,5.68227722,2563.7,2563.5,13.99953116]
[1748254303227,1.56030581,2563.6,2563.5,13.99953116]
[1748254303439,5.68227156,2563.7,2563.5,13.99953116]
[1748254303740,5.68227156,2563.7,2563.6,1.78955312]
[1748254305503,1.56020233,2563.8,2563.7,0.55]
[1748254305756,5.68320233,2563.8,2563.7,11.90273826]
[1748254307514,1.56013847,2563.9,2563.8,8.55]
[1748254307719,4.123,2563.9,2563.8,7.25547652]
[1748254308248,5.68312324,2563.9,2563.8,7.25547652]
[1748254309720,5.68312324,2563.9,2563.8,3.90273826]
[1748254312039,1.56012324,2563.9,2563.8,3.90273826]
[1748254312246,5.68312324,2563.9,2563.8,5.2719674]
[1748254313823,4.123,2563.9,2563.8,9.37600566]
[1748254314024,4.123,2564.0,2563.8,17.37600566]
[1748254314225,5.6830624,2564.0,2563.9,15.25547652]
[1748254314426,5.6830624,2564.0,2563.9,13.09033883]
[1748254318953,5.6830624,2564.0,2563.9,11.35273826]
[1748254321665,4.123,2564.0,2563.9,11.35273826]
[1748254322960,8.02,2564.0,2563.4,0.623929]
[1748254323259,8.02,2564.0,2563.9,3.35273826]
[1748254323764,8.02,2564.0,2563.9,11.35273826]
[1748254324960,8.835,2564.0,2563.9,8.0]
[1748254325179,0.815,2563.9,2563.4,0.623929]
[1748254325461,8.02,2564.0,2563.4,3.97666726]
[1748254325462,0.815,2563.7,2563.4,3.97666726]
[1748254325629,3.897,2563.6,2563.4,3.97666726]
[1748254326234,3.897,2563.6,2563.5,8.0]
[1748254326438,4.7164,2563.6,2563.5,8.0]
[1748254326839,4.7164,2563.6,2563.4,3.97666726]
[1748254327355,4.7164,2563.6,2563.4,3.35273826]
[1748254327567,1.56036668,2563.5,2563.4,3.35273826]
[1748254328436,1.56042755,2563.4,2563.2,3.35273826]
[1748254328638,9.57848843,2563.3,2563.2,3.35273826]
[1748254328853,9.57848843,2563.3,2563.2,11.35273826]
[1748254329436,10.39788843,2563.3,2563.2,8.0]
[1748254329640,1.56054931,2563.2,2563.1,0.1]
[1748254329949,2.39244931,2563.2,2563.1,8.1]
[1748254331353,2.39244931,2563.2,2563.1,0.1]
[1748254334375,5.68254931,2563.2,2563.1,8.44527383]
[1748254336453,1.56054931,2563.2,2563.1,8.44527383]
[1748254336660,5.68254931,2563.2,2563.1,8.44527383]
[1748254337900,1.56048951,2563.3,2563.1,8.44527383]
[1748254338099,3.898,2563.5,2563.2,4.12533826]
[1748254338306,5.45829099,2563.7,2563.5,8.0]
[1748254338461,1.56042029,2563.5,2563.3,8.0]
[1748254338662,1.56042029,2563.5,2563.4,11.35273826]
[1748254343996,5.68242029,2563.5,2563.4,11.35273826]
[1748254346814,5.68242029,2563.5,2563.4,12.77177959]
[1748254348810,1.56042029,2563.5,2563.4,12.77177959]
[1748254349010,5.67942029,2563.5,2563.4,12.77177959]
[1748254357121,1.56042029,2563.5,2563.4,12.77177959]
[1748254357334,5.67942029,2563.5,2563.4,12.77177959]
[1748254360126,5.67942029,2563.5,2563.4,11.35273826]
[1748254372043,6.43382029,2563.5,2563.4,11.35273826]
[1748254373847,6.43382029,2563.5,2563.4,3.35273826]
[1748254379947,1.56048843,2563.3,2563.2,3.35273826]
[1748254380158,5.82109948,2563.3,2563.2,3.35273826]
[1748254380350,6.63409948,2563.3,2563.2,3.35273826]
[1748254382680,6.27148843,2563.3,2563.2,3.35273826]
[1748254391612,1.56054931,2563.2,2563.1,0.1]
[1748254391797,1.56054931,2563.2,2563.1,3.45273826]
[1748254393283,1.56054931,2563.2,2563.1,0.1]
[1748254395207,1.56054931,2563.2,2563.1,3.45273826]
[1748254398217,1.92261356,2563.2,2563.1,0.1]
[1748254398515,2.71511356,2563.2,2563.1,0.1]
[1748254399301,3.07720531,2563.2,2563.1,0.1]
[1748254403811,7.19320531,2563.2,2563.1,0.1]
[1748254404127,10.29970531,2563.2,2563.1,0.1]
[1748254404499,9.93761356,2563.2,2563.1,0.1]
[1748254405426,9.57554931,2563.2,2563.1,0.1]
[1748254408090,10.33544931,2563.2,2563.1,0.1]
[1748254409124,10.69751075,2563.2,2563.1,0.1]
[1748254411203,9.93761075,2563.2,2563.1,0.1]
[1748254412447,9.93461075,2563.2,2563.1,0.1]
[1748254418937,1.92261075,2563.2,2563.1,0.1]
[1748254419142,9.93461075,2563.2,2563.1,0.1]
[1748254422358,9.93461075,2563.2,2563.1,3.45273826]
[1748254422958,9.57254931,2563.2,2563.1,3.45273826]
[1748254423569,9.57154931,2563.2,2563.1,3.45273826]
[1748254423768,1.56054931,2563.2,2563.1,3.87575209]
[1748254424065,5.67254931,2563.2,2563.1,3.87575209]
[1748254424628,4.112,2563.2,2563.1,4.68995209]
[1748254424951,5.67254931,2563.2,2563.1,4.68995209]
[1748254425325,5.67254931,2563.2,2563.1,1.33721383]
[1748254425551,5.67254931,2563.2,2563.1,0.9142]
[1748254435271,5.67254931,2563.2,2563.1,0.1]
[1748254442781,5.67254931,2563.2,2563.1,0.891]
[1748254445177,1.56045817,2563.4,2563.1,1.441]
[1748254445478,5.6684894,2563.3,2563.1,1.441]
[1748254445668,5.6684894,2563.3,2563.2,8.0]
[1748254450599,1.56054931,2563.2,2563.1,0.1]
[1748254452304,5.66854931,2563.2,2563.1,0.9035]
[1748254454630,5.66854931,2563.2,2563.1,0.1]
[1748254466953,1.56030581,2563.6,2563.1,0.8926]
[1748254467251,4.108,2563.2,2563.1,0.8926]
[1748254469346,5.66854931,2563.2,2563.1,0.8926]
[1748254470439,5.66854931,2563.2,2563.1,12.23716286]
[1748254471559,5.66854931,2563.2,2563.1,11.44456286]
[1748254472458,5.66854931,2563.2,2563.1,12.66957915]
[1748254472459,5.66554931,2563.2,2563.1,12.66957915]
[1748254472616,1.56054931,2563.2,2563.1,12.66957915]
[1748254472817,5.66554931,2563.2,2563.1,12.66957915]
[1748254473232,5.66554931,2563.2,2563.1,11.44456286]
[1748254492349,9.56354931,2563.2,2563.1,11.44456286]
[1748254500781,10.36684931,2563.2,2563.1,0.1]